{"text_format":"1","workbook":"xlsx","n_sheets":10,"sheets":["Главная-2020","Прил.1-2020 ДОУ","Прил.2-2020 СВЭ","Прил.3-2020 ограждения","Прил.3-2020 ограждения-Р.1","Прил.3-2020 ограждения-Р.2","Прил.3-2020 ограждения-Р.3","Прил.3-2020 ограждения-Р.4","Прил.4-2020 светофоры","Субъекты"],"not_rendered":{"charts":0,"images":4,"macros":1,"external_links":0,"defined_names":5,"comments":0,"pivot_tables":0},"unopened":[],"bounds":{"document_bytes":16777216,"sheet_cells":100000,"rows_first":2000,"rows_last":500,"rows_between":2000,"halvings":0,"cell_chars":16384,"cell_head_chars":4096},"cells_cut":0,"cells_raw":0,"read":"whole","date_system":"1900"}

{"sheet":"Главная-2020","index":0,"n_rows":24,"n_cols":9,"rows_kept":24,"cut":false,"hidden":false,"merged":[[4,8,5,8],[4,0,5,0],[4,1,5,1],[4,2,4,3],[4,4,4,5],[4,6,4,7],[10,0,10,8],[0,4,0,8],[1,0,1,8],[22,2,22,3],[19,2,19,3],[17,2,17,3],[17,5,17,6],[19,5,19,6],[21,5,21,6],[22,5,22,6],[21,2,21,3],[18,2,18,3],[18,5,18,6],[20,2,20,3],[20,5,20,6],[2,1,2,7]]}
[]
["Бюджетная заявка на предоставление материально-технических ресурсов (МТР), \nприобретаемых за счет средств федерального бюджета в 2020 году \nв рамках реализации мероприятий федеральной целевой программы\n\"Повышение безопасности дорожного движения в 2013-2020 годах\""]
["Субъект Российской Федерации:  ","Наименование субъекта РФ"]
[]
["Наименование расходов и источников финансирования","Единица\nизмерения","Бюджетная заявка на поставки МТР за счет средств федерального бюджета",null,"Планируемые ассигнования субъектов Российской Федерации за счет регионального бюджета и местных бюджетов субъекта РФ",null,"Планируемые ассигнования субъектов Российской Федерации за счет внебюджетных средств",null,"% планового финансирования из регионального бюджета и внебюджетных источников по отношению к соответствующему мероприятию ФЦП"]
[null,null,"Количество","Сумма","Количество","Сумма","Количество","Сумма"]
[1,{"$f":"A7+1","v":2},{"$f":"B7+1","v":3},4,5,6,7,8,{"$f":"H7+1","v":9}]
["I. Объем поставок МТР за счет средств федерального бюджета",null,"-",{"$f":"D9","v":0},"-",{"$f":"F9","v":0},"-",{"$f":"H9","v":0}]
["Прочие нужды",null,"-",{"$f":"SUM(D12:D15)","v":0},"-",{"$f":"SUM(F12:F15)","v":0},"-",{"$f":"SUM(H12:H15)","v":0}]
["II. Обоснование ассигнований на реализацию программы в том числе :     "]
["Прочие нужды"]
["3/9 \"Приобретение для дошкольных образовательных организаций оборудования, позволяющего в игровой форме формировать навыки безопасного поведения на дороге (не менее 1390 комплектов)\" (Приложение 1)","комплект",null,null,null,null,null,null,{"$f":"(F12+H12)/D12","v":{"$error":"#DIV/0!"}}]
["3/11 \"Изготовление и распространение световозвращающих приспособлений среди дошкольников и учащихся младших классов образовательных организаций (не менее 4 млн. штук)\" (Приложение 2)","шт.",null,null,null,null,null,null,{"$f":"(F13+H13)/D13","v":{"$error":"#DIV/0!"}}]
["5/7 \"Оснащение участков улично-дорожной сети городов и населенных пунктов пешеходными ограждениями, в том числе в зоне пешеходных переходов (не менее 809 км)\" (Приложение 3)","пог.метр",null,null,null,null,null,null,{"$error":"#DIV/0!"}]
["5/9 \"Модернизация светофорных объектов (не менее 2874)\" (Приложение 4)","объект",null,null,null,null,null,null,{"$error":"#DIV/0!"}]
[]
[]
[]
["(Должность)",null,"(Подпись)",null,null,"(Инициалы, фамилия)"]
[]
["(Должность исполнителя)",null,"(Подпись)",null,null,"(Инициалы, фамилия)"]
[]
[null,null,"(контактный телефон)",null,null,"(электронная почта)"]
["«____» __________________ 20___  г."]

{"sheet":"Прил.1-2020 ДОУ","index":1,"n_rows":36,"n_cols":4,"rows_kept":36,"cut":false,"hidden":false,"merged":[[0,0,0,1],[0,2,0,4],[32,0,32,1],[32,3,32,4],[33,0,34,1],[34,3,34,4],[1,0,1,4],[2,0,2,5],[8,2,8,4],[9,2,9,4],[10,2,10,4],[30,0,31,1],[30,3,31,4],[11,2,11,4],[16,2,16,4],[3,2,3,4],[35,0,35,1],[27,1,27,4],[29,0,29,1],[29,3,29,4],[22,0,22,4],[23,1,23,4],[24,1,24,4],[25,1,25,4],[3,0,3,1],[4,0,4,1],[17,2,17,4],[18,2,18,4],[19,2,19,4],[4,2,4,4],[5,2,5,4],[5,0,5,1]]}
["Наименование субъекта РФ",null,"ПРИЛОЖЕНИЕ № 1 к бюджетной заявке «Приобретение оборудования для дошкольных образовательных организаций»"]
["Заявка на выделение МТР в рамках ФЦП «Повышение безопасности дорожного движения\nв 2013-2020 годах» по мероприятию № 3/9 «Приобретение для дошкольных образовательных организаций оборудования, позволяющего в игровой форме формировать навыки безопасного поведения на дороге (не менее 1390 комплектов)» на 2020 год"]
["1. Комлпекты оборудования для дошкольных образовательных организаций"]
["Наименование оборудования",null,"Запрашиваемое количество"]
["Оборудование для дошкольных образовательных организаций1, компл.",null,0]
["ИТОГО",null,{"$f":"C5","v":0}]
[]
["2. Сведения об организации, уполномоченной на получение МТР от поставщика на ответственное хранение (заполнение обязательно!)"]
["Наименование организации-получателя МТР на ответственное хранение"]
["Юридический адрес"]
["Почтовый адрес"]
["Должность, ФИО руководителя"]
["Телефон, факс, адрес электронной почты"]
[]
[]
["3. Сведения об организации, уполномоченной на получение затрат на МТР (заполнение обязательно!)"]
["Наименование организации-получателя затрат на МТР"]
["Юридический адрес"]
["Почтовый адрес"]
["Должность, ФИО руководителя"]
["Телефон, факс, адрес электронной почты"]
[]
["1 Состав комплекта оборудования для дошкольных образовательных организаций:"]
[null,"1) комплект светоотражающих жилетов;"]
[null,"2) модели транспортных и пешеходных светофоров;"]
[null,"3) напольная модель четырехстороннего перекрестка;"]
[null,"4) комплект стоек «Дорожные знаки»;"]
[null,"5) информационные стенды (представляют собой многоцветные настенные панели размером 700 х 1000 мм с крепежными элементами и информацией по вопросам обеспечения безопасности пешеходов и пассажиров транспортных средств)."]
[]
["(должность)",null,"(подпись)","(инициалы, фамилия)"]
[]
[]
["(должность составителя заявки)",null,"(подпись)","(инициалы, фамилия)"]
[]
[null,null,null,"«____» ___________ 20___ г."]
["(контактный телефон)",null,"(электронная почта)"]

{"sheet":"Прил.2-2020 СВЭ","index":2,"n_rows":29,"n_cols":4,"rows_kept":29,"cut":false,"hidden":false,"merged":[[8,1,8,3],[3,1,3,3],[4,1,4,3],[5,1,5,3],[0,1,0,3],[1,0,1,3],[25,2,25,3],[2,0,2,4],[11,1,11,3],[21,2,21,3],[22,2,22,3],[23,0,24,0],[23,1,24,1],[23,2,24,3],[15,1,15,3],[16,1,16,3],[17,1,17,3],[18,1,18,3],[10,1,10,3],[9,1,9,3]]}
["Наименование субъекта РФ","ПРИЛОЖЕНИЕ № 2 к бюджетной заявке «Изготовление и распространение световозвращающих приспособлений»"]
["Заявка на выделение МТР в рамках ФЦП «Повышение безопасности дорожного движения в 2013-2020 годах»\nпо мероприятию № 3/11 «Изготовление и распространение световозвращающих приспособлений среди дошкольников и учащихся младших классов образовательных организаций (не менее 4 млн. штук)» на 2020 год"]
["1. Световозвращающие приспособления"]
["Наименование","Запрашиваемое количество"]
["Световозвращающая подвеска для пешеходов с тематическим рисунком",0]
["ИТОГО",{"$f":"B5","v":0}]
[]
["2. Сведения об организации, уполномоченной на получение МТР от поставщика на ответственное хранение (заполнение обязательно!)"]
["Наименование организации-получателя МТР на ответственное хранение"]
["Юридический адрес"]
["Почтовый адрес"]
["Должность, ФИО руководителя"]
["Телефон, факс, адрес электронной почты"]
[]
["3. Сведения об организации, уполномоченной на получение затрат на МТР (заполнение обязательно!)"]
["Наименование организации-получателя затрат на МТР"]
["Юридический адрес"]
["Почтовый адрес"]
["Должность, ФИО руководителя"]
["Телефон, факс, адрес электронной почты"]
[]
[]
["(должность)","(подпись)","(инициалы, фамилия)"]
[]
[]
["(должность составителя заявки)","(подпись)","(инициалы, фамилия)"]
[]
[null,null,null,"«___» _________ 20___ г."]
["(контактный телефон)","(электронная почта)"]

{"sheet":"Прил.3-2020 ограждения","index":3,"n_rows":55,"n_cols":15,"rows_kept":55,"cut":false,"hidden":false,"merged":[[38,14,38,15],[40,12,40,13],[41,14,41,15],[40,14,40,15],[40,6,40,8],[40,9,40,11],[38,6,38,8],[38,9,38,11],[38,12,38,13],[42,14,42,15],[41,3,41,5],[41,6,41,8],[41,9,41,11],[41,12,41,13],[42,6,42,8],[42,9,42,11],[42,12,42,13],[30,0,30,15],[35,12,35,13],[32,6,32,8],[33,6,33,8],[34,6,34,8],[35,6,35,8],[32,1,32,2],[33,1,33,2],[34,1,34,2],[35,1,35,2],[31,1,31,2],[32,9,32,11],[33,9,33,11],[34,9,34,11],[35,9,35,11],[32,12,32,13],[40,3,40,5],[46,0,46,15],[44,0,44,15],[45,0,45,15],[38,1,38,2],[39,1,39,2],[40,1,40,2],[41,1,41,2],[39,3,39,5],[38,3,38,5],[39,6,39,8],[39,9,39,11],[39,12,39,13],[39,14,39,15],[42,1,42,2],[42,3,42,5],[31,14,31,15],[31,12,31,13],[31,3,31,5],[31,9,31,11],[31,6,31,8],[37,0,37,15],[34,3,34,5],[35,3,35,5],[32,3,32,5],[33,3,33,5],[35,14,35,15],[36,0,36,15],[33,12,33,13],[34,12,34,13],[32,14,32,15],[33,14,33,15],[34,14,34,15],[0,3,0,15],[3,0,3,15],[5,0,7,0],[5,1,7,1],[5,3,7,3],[5,4,7,4],[5,6,7,6],[5,7,7,7],[5,2,7,2],[5,5,7,5],[5,8,5,13],[6,8,6,10],[6,11,6,13],[53,0,53,1],[53,10,53,15],[53,4,53,6],[54,4,54,6],[49,10,50,15],[51,10,51,15],[49,0,50,4],[51,0,51,4],[49,6,50,8],[51,6,51,8],[54,0,54,1]]}
["Наименование субъекта РФ",null,null,"ПРИЛОЖЕНИЕ № 3 к бюджетной заявке «Оснащение пешеходными ограждениями»"]
[]
[]
["Заявка на выделение МТР в рамках ФЦП «Повышение безопасности дорожного движения в 2013-2020 годах»\nпо мероприятию № 5/7 \"Оснащение участков улично-дорожной сети городов и населенных пунктов пешеходными ограждениями, \nв том числе в зоне пешеходных переходов (не менее 809 км)» на 2020 год"]
["1. Адресный перечень"]
["№","Место (адрес) установки  пешеходных ограждений1 (населенный пункт, дорога, километр, пикет, улица, № дома и т.д, как указано в документации на дорогу)","Номер типового решения","Длина пешеходного ограждения2, п. м.","Номер организации балансодержателя (в соответствии с разделом 2 настоящего приложения) ","Номер организации, осуществляющей технический надзор (в соответствии с разделом 3 настоящего приложения) ","Наличие ранее установленных ограждений по данному адресу (да/нет)","Наличие согласования с владельцем улично-дорожной сети (да/нет)","Сведения об аварийности"]
[null,null,null,null,null,null,null,null,"2017 г.",null,null,"2018 г."]
[null,null,null,null,null,null,null,null," ДТП ","Погибло","Ранено"," ДТП ","Погибло","Ранено"]
[1,2,3,4,5,6,7,8,9,10,11,12,13,14]
[1]
[2]
[3]
[4]
[5]
[6]
[7]
[8]
[9]
[10]
[11]
[12]
[13]
[14]
[15]
[16]
[17]
[18]
[19]
[20]
[null,"ИТОГО:",null,{"$f":"SUM(D10:D29)","v":0}]
["2. Организации-балансодержатели улично-дорожной сети (заполнение обязательно):"]
["№","Наименование",null,"Должность, Ф.И.О. руководителя",null,null,"Юридический адрес",null,null,"Почтовый адрес",null,null,"Телефон, факс",null,"Адрес электронной почты"]
[1]
[2]
[3]
[4]
["Справки о балансодержателях улично-дорожной сети которые будут принимать на баланс затраты на имущество прилагаются к бюджетной заявке"]
["3. Организации, которые по договору с ФКУ «Дирекция Программы ПБДД» на безвозмездной основе будут осуществлять технический надзор (заполнение обязательно):\n"]
["№","Наименование",null,"Должность, Ф.И.О. руководителя",null,null,"Юридический адрес",null,null,"Почтовый адрес",null,null,"Телефон, факс",null,"Адрес электронной почты"]
[1]
[2]
[3]
[4]
[]
["1 Конструктивно ограждения выполняются из секций, сваренных из металлопроката (не литье) с покрытием, нанесенным методом горячего цинкования. Типовые решения (эскизы пешеходных ограждений) приведены в приложении 3 ограждения разделы 1-4."]
["2 Указывается длина только самого ограждения, за вычетом всех разрывов."]
[]
[]
[]
[]
[]
["(должность составителя заявки)",null,null,null,null,null,"(подпись)",null,null,null,"(инициалы, фамилия)"]
[]
[null,null,null,null,null,null,null,null,null,null,"«____» ________________ 20___ г."]
["(контактный телефон)",null,null,null,"электронная почта"]

{"sheet":"Прил.3-2020 ограждения-Р.1","index":4,"n_rows":1,"n_cols":1,"rows_kept":1,"cut":false,"hidden":false,"merged":[[0,0,0,11]]}
["Эскизы пешеходных ограждений (типовые решения)"]

{"sheet":"Прил.3-2020 ограждения-Р.2","index":5,"n_rows":0,"n_cols":0,"rows_kept":0,"cut":false,"hidden":false,"merged":[]}

{"sheet":"Прил.3-2020 ограждения-Р.3","index":6,"n_rows":0,"n_cols":0,"rows_kept":0,"cut":false,"hidden":false,"merged":[]}

{"sheet":"Прил.3-2020 ограждения-Р.4","index":7,"n_rows":18,"n_cols":19,"rows_kept":18,"cut":false,"hidden":false,"merged":[]}
[]
[]
[null,null,null,null,null,"Чертеж пешеходного ограждения (типовое решение № 4)",null,null,null,null,null,null,null,null,"\"Согласовано\""]
[]
[null,null,null,null,null,null,null,null,null,null,null,null,null,null,"_________________________________________________________"]
[]
[null,null,null,null,null,null,null,null,null,null,null,null,null,null,"_________________________________________________________"]
[]
[null,null,null,null,null,null,null,null,null,null,null,null,null,null,"_________________________________________________________"]
[]
[null,null,null,null,null,null,null,null,null,null,null,null,null,null,"_________________________________________________________"]
[]
[]
[]
[]
[null,null,null,null,null,null,null,null,null,null,null,null,null,null,"_________________________________________________________"]
[]
[null,null,null,null,null,null,null,null,null,null,null,null,null,null,null,null,null,null,"МП"]

{"sheet":"Прил.4-2020 светофоры","index":8,"n_rows":86,"n_cols":24,"rows_kept":86,"cut":false,"hidden":false,"merged":[[33,14,33,15],[34,14,37,15],[38,14,41,15],[42,14,45,15],[42,9,45,11],[34,12,37,13],[38,12,41,13],[42,12,45,13],[34,0,37,0],[38,0,41,0],[42,0,45,0],[46,0,49,0],[38,3,41,5],[42,3,45,5],[42,1,45,1],[33,1,33,2],[46,1,49,2],[34,1,37,2],[2,0,2,5],[5,18,5,20],[3,2,9,2],[32,0,32,17],[57,14,60,15],[61,14,64,15],[65,14,68,15],[65,16,68,17],[38,1,41,1],[53,3,56,5],[57,3,60,5],[61,3,64,5],[65,3,68,5],[53,6,56,8],[57,6,60,8],[33,16,33,17],[34,16,37,17],[38,16,41,17],[42,16,45,17],[46,16,49,17],[53,16,56,17],[57,16,60,17],[33,9,33,11],[50,0,50,17],[3,1,8,1],[3,3,9,3],[3,18,3,23],[4,18,4,23],[6,18,9,18],[6,19,9,19],[6,20,9,20],[6,21,9,21],[6,22,9,22],[6,23,9,23],[3,4,5,15],[7,4,9,15],[0,3,0,24],[52,9,52,11],[52,12,52,13],[52,14,52,15],[52,16,52,17],[3,16,9,16],[3,17,9,17],[46,9,49,11],[46,12,49,13],[52,3,52,5],[52,6,52,8],[33,12,33,13],[34,9,37,11],[38,9,41,11],[33,6,33,8],[34,6,37,8],[38,6,41,8],[5,21,5,23],[42,6,45,8],[33,3,33,5],[34,3,37,5],[46,3,49,5],[1,0,1,23],[3,0,9,0],[65,6,68,8],[46,6,49,8],[51,0,51,17],[53,0,56,0],[57,0,60,0],[61,0,64,0],[46,14,49,15],[65,0,68,0],[65,9,68,11],[65,12,68,13],[52,1,52,2],[53,1,56,2],[57,1,60,2],[61,1,64,2],[65,1,68,2],[61,6,64,8],[61,16,64,17],[53,9,56,11],[57,9,60,11],[61,9,64,11],[53,12,56,13],[57,12,60,13],[61,12,64,13],[53,14,56,15],[85,17,85,24],[78,0,78,7],[79,0,79,7],[81,0,81,7],[82,0,82,7],[78,11,78,14],[79,11,79,14],[81,11,81,14],[82,11,82,14],[84,17,84,24],[78,17,78,24],[79,17,79,24],[81,17,81,24],[82,17,82,24],[85,11,85,14],[84,11,84,14],[84,0,84,1]]}
["Наименование субъекта РФ",null,null,"ПРИЛОЖЕНИЕ № 4 к бюджетной заявке «Модернизация светофорных объектов»"]
["Заявка на выделение МТР в рамках ФЦП «Повышение безопасности дорожного движения в 2013-2020 годах»\nпо мероприятию № 5/9 «Модернизация светофорных объектов (не менее 2874)» на 2020 год"]
["1. Модернизация светофорных объектов"]
["№\nп/п","Место  (адрес) расположения светофорного объекта1 (населенный пункт, улицы, № дома)","Наличие согласованной и утвержденной проектно-сметной документации (да/нет)","Дата создания объекта/ Последняя дата модернизации объекта","Наименование оборудования:",null,null,null,null,null,null,null,null,null,null,null,"Номер организации-балансодержателя 2","Номер организации, осуществляющей технический надзор 3","Характеристика места установки"]
[null,null,null,null,null,null,null,null,null,null,null,null,null,null,null,null,null,null,"Сведения об аварийности"]
[null,null,null,null,null,null,null,null,null,null,null,null,null,null,null,null,null,null,"2017 г.",null,null,"2018 г."]
[null,null,null,null,"Светофор транспортный\n(светодиодный) Т 1.2, шт.","Светофор транспортный\n(светодиодный) Т 1.2 п, шт.","Светофор транспортный\n(светодиодный) Т 1.2 л, шт.","Светофор пешеходный\n(светодиодный) П 1.1, шт.","Светофор транспортный\n(светодиодный) Т 1.2\nс табло обратного отсчёта времени, шт.","Светофор транспортный\n(светодиодный) Т 1.2 п\nс табло обратного отсчёта времени, шт.","Светофор транспортный\n(светодиодный) Т 1.2 л\nс табло обратного отсчёта времени, шт.","Светофор пешеходный\n(светодиодный) П 1.1\nс табло обратного отсчёта времени, шт.","Устройство звукового сопровождения пешехода, шт.","Табло обратного отсчёта времени, шт.","Контроллер дорожный, шт.","Предпочтительная марка контроллера (количество каналов)",null,null," ДТП ","Погибло","Ранено"," ДТП ","Погибло","Ранено"]
[null,null,null,null,"Требуемое количество, шт."]
[]
[null,"Населенный пункт, название улицы 1 – название улицы 2"]
[1,2,3,4,5,6,7,8,9,10,11,12,13,14,15,16,17,18,19,20,21,22,23,24]
[1]
[2]
[3]
[4]
[5]
[6]
[7]
[8]
[9]
[10]
[11]
[12]
[13]
[14]
[15]
[16]
[17]
[18]
[19]
[20]
[null,"ИТОГО, светофорных объектов, шт.",null,null,{"$f":"SUM(E12:E31)","v":0},0,0,0,0,0,0,0,0,0,0,"-"]
["2. Организации-балансодержатели светофорных объектов (заполнение обязательно):"]
["Номер","Наименование",null,"Юридический адрес",null,null,"Почтовый адрес",null,null,"Должность руководителя",null,null,"Ф.И.О. руководителя",null,"Телефон, факс",null,"Адрес электронной почты"]
[1]
[]
[]
[]
[2]
[]
[]
[]
[3]
[]
[]
[]
[4]
[]
[]
[]
["Справки о балансодержателях светофорных объектов которые будут принимать на баланс затраты на имущество прилагаются к бюджетной заявке"]
["3. Организации, которые по договору с ФКУ «Дирекция Программы ПБДД» на безвозмездной основе будут осуществлять технический надзор (заполнение обязательно):"]
["Номер","Наименование",null,"Юридический адрес",null,null,"Почтовый адрес",null,null,"Должность руководителя",null,null,"Ф.И.О. руководителя",null,"Телефон, факс",null,"Адрес электронной почты"]
[1]
[]
[]
[]
[2]
[]
[]
[]
[3]
[]
[]
[]
[4]
[]
[]
[]
[]
[]
[]
[]
["1 Указать место (адрес) светофорного объекта в виде пересечения двух улиц или иных ориентиров с указанием населенного пункта."]
["2 Указывается номер организации в соответствии с разделом 2."]
["3 Указывается номер организации в соответствии с разделом 3."]
[]
[]
[]
["(Должность)",null,null,null,null,null,null,null,null,null,null,"(подпись)",null,null,null,null,null,"(инициалы, фамилия)"]
[]
[]
["(должность составителя заявки)",null,null,null,null,null,null,null,null,null,null,"(подпись)",null,null,null,null,null,"(инициалы, фамилия)"]
[]
["«____» __________________ 20___ года"]
[null,null,null,null,null,null,null,null,null,null,null,"(контактный телефон)",null,null,null,null,null,"(электронная почта)"]

{"sheet":"Субъекты","index":9,"n_rows":87,"n_cols":10,"rows_kept":87,"cut":false,"hidden":true,"merged":[]}
["№ по Конституции","Наименование субъекта РФ"]
["Нет","Наименование субъекта РФ",null,null,null,null,"1А",null,null,"Грунт + эмаль"]
[1,"Республика Адыгея (Адыгея) ",null,null,null,null,"1Б",null,null,"Горячее цинкование"]
[2,"Республика Алтай ",null,null,null,null,"2А"]
[3,"Республика Башкортостан ",null,null,null,null,"2Б"]
[4,"Республика Бурятия ",null,null,null,null,"3А",null,null,"Стационарный"]
[5,"Республика Дагестан ",null,null,null,null,"3Б",null,null,"Передвижной"]
[6,"Республика Ингушетия",null,null,null,null,"4А"]
[7,"Кабардино-Балкарская Республика ",null,null,null,null,"4Б"]
[8,"Республика Калмыкия ",null,null,null,null,"5А"]
[9,"Карачаево-Черкесская Республика ",null,null,null,null,"5Б"]
[10,"Республика Карелия ",null,null,null,null,"6А"]
[11,"Республика Коми ",null,null,null,null,"6Б"]
[12,"Республика Крым",null,null,null,null,"7А"]
[13,"Республика Марий Эл ",null,null,null,null,"7Б"]
[14,"Республика Мордовия ",null,null,null,null,"7В"]
[15,"Республика Саха (Якутия) ",null,null,null,null,"8А"]
[16,"Республика Северная Осетия - Алания ",null,null,null,null,"8Б"]
[17,"Республика Татарстан (Татарстан) ",null,null,null,null,"8В"]
[18,"Республика Тыва "]
[19,"Удмуртская Республика "]
[20,"Республика Хакасия "]
[21,"Чеченская Республика "]
[22,"Чувашская Республика - Чувашия",null,null,null,null,"Да"]
[23,"Алтайский край ",null,null,null,null,"Нет"]
[24,"Забайкальский край "]
[25,"Камчатский край "]
[26,"Краснодарский край "]
[27,"Красноярский край "]
[28,"Пермский край "]
[29,"Приморский край "]
[30,"Ставропольский край "]
[31,"Хабаровский край"]
[32,"Амурская область "]
[33,"Архангельская область "]
[34,"Астраханская область "]
[35,"Белгородская область "]
[36,"Брянская область "]
[37,"Владимирская область "]
[38,"Волгоградская область "]
[39,"Вологодская область "]
[40,"Воронежская область "]
[41,"Ивановская область "]
[42,"Иркутская область "]
[43,"Калининградская область "]
[44,"Калужская область "]
[45,"Кемеровская область "]
[46,"Кировская область "]
[47,"Костромская область "]
[48,"Курганская область "]
[49,"Курская область "]
[50,"Ленинградская область "]
[51,"Липецкая область "]
[52,"Магаданская область "]
[53,"Московская область "]
[54,"Мурманская область "]
[55,"Нижегородская область "]
[56,"Новгородская область "]
[57,"Новосибирская область "]
[58,"Омская область "]
[59,"Оренбургская область "]
[60,"Орловская область "]
[61,"Пензенская область "]
[62,"Псковская область "]
[63,"Ростовская область "]
[64,"Рязанская область "]
[65,"Самарская область "]
[66,"Саратовская область "]
[67,"Сахалинская область "]
[68,"Свердловская область "]
[69,"Смоленская область "]
[70,"Тамбовская область "]
[71,"Тверская область "]
[72,"Томская область "]
[73,"Тульская область "]
[74,"Тюменская область "]
[75,"Ульяновская область "]
[76,"Челябинская область "]
[77,"Ярославская область"]
[78,"город Москва "]
[79,"город Санкт-Петербург"]
[80,"город Севастополь"]
[81,"Еврейская автономная область"]
[82,"Ненецкий автономный округ "]
[83,"Ханты-Мансийский автономный округ - Югра "]
[84,"Чукотский автономный округ "]
[85,"Ямало-Ненецкий автономный округ"]